fUST/lending_fUST_20240925
["ID","MTS","AMOUNT","RATE_DAILY","PERIOD"]
[339168788,1727273442000,-151.0,0.0001599,2]
[339168790,1727273442010,-151.0,0.0001599,2]
[339168792,1727273442021,-208.003114,0.0001599,2]
[339168794,1727273442031,-456.088569,0.0001599,2]
[339168796,1727273442042,-456.088569,0.0001599,2]
[339168798,1727273442053,-456.088569,0.0001599,2]
[339168800,1727273442064,-229.946747,0.0001599,2]
[339168803,1727273442076,-229.946747,0.0001599,2]
[339168805,1727273442095,-229.946747,0.0001599,2]
[339168807,1727273442106,-229.946747,0.0001599,2]
[339168809,1727273442116,-229.946747,0.0001599,2]
[339168811,1727273442126,-229.946747,0.0001599,2]
[339168813,1727273442137,-151.852091,0.0001599,2]
[339168815,1727273442148,-151.0,0.0001599,2]
[339168817,1727273442159,-151.0,0.0001599,2]
[339168820,1727273442169,-151.0,0.0001599,2]
[339168822,1727273442180,-326.920649,0.0001599,2]
[339168824,1727273442190,-326.920649,0.0001599,2]
[339168826,1727273442201,-326.920649,0.0001599,2]
[339168828,1727273442211,-326.920649,0.0001599,2]
[339168831,1727273442221,-326.920649,0.0001599,2]
[339168833,1727273442238,-326.920649,0.0001599,2]
[339168835,1727273442249,-326.920649,0.0001599,2]
[339168877,1727273442635,-151.0,0.0001599,2]
[339168880,1727273442646,-151.0,0.0001599,2]
[339168882,1727273442656,-326.920649,0.0001599,2]
[339168884,1727273442665,-151.0,0.0001599,2]
[339168887,1727273442675,-151.0,0.0001599,2]
[339168890,1727273442685,-151.0,0.0001599,2]
[339168894,1727273442695,-276.277042,0.0001599,2]
[339168898,1727273442705,-299.538799,0.0001599,2]
[339168902,1727273442714,-299.538799,0.0001599,2]
[339168906,1727273442724,-299.538799,0.0001599,2]
[339168910,1727273442734,-299.538799,0.0001599,2]
[339168912,1727273442743,-151.0,0.0001599,2]
[339168914,1727273442753,-299.538799,0.0001599,2]
[339168916,1727273442762,-151.0,0.0001599,2]
[339168918,1727273442772,-299.538799,0.0001599,2]
[339168920,1727273442781,-151.0,0.0001599,2]
[339168922,1727273442792,-151.0,0.0001599,2]
[339168924,1727273442801,-151.0,0.0001599,2]
[339168926,1727273442811,-151.0,0.0001599,2]
[339168928,1727273442820,-151.0,0.0001599,2]
[339168930,1727273442830,-151.0,0.0001599,2]
[339168932,1727273442843,-151.0,0.0001599,2]
[339168934,1727273442852,-151.0,0.0001599,2]
[339168936,1727273442862,-151.0,0.0001599,2]
[339168938,1727273442873,-321.899335,0.0001599,2]
[339168940,1727273442882,-321.899335,0.0001599,2]
[339168942,1727273442892,-321.899335,0.0001599,2]
[339168944,1727273442902,-321.899335,0.0001599,2]
[339168946,1727273442912,-321.899335,0.0001599,2]
[339168948,1727273442922,-321.899335,0.0001599,2]
[339168950,1727273442932,-28987.02035951,0.0001599,2]
[339168991,1727273443309,-4119.10071634,0.0001599,2]
[339168993,1727273443321,-352.26883856,0.0001599,2]
[339172525,1727273588408,700.0,0.000141,2]
[339172527,1727273611791,500.0,0.00013014,2]
[339172528,1727273626076,4000.0,0.000141,2]
[339172537,1727274229654,500.0,0.00013014,2]
[339172539,1727274292541,502.13,0.00014,2]
[339172540,1727274322110,500.0,0.00014,2]
[339172541,1727274367627,1700.0,0.00013709,2]
[339172542,1727274369034,17299.8,0.00014,2]
[339172620,1727274632311,-492.34,0.000143,2]
[339172622,1727274632322,-179.205816,0.00014687,2]
[339172624,1727274632331,-500.0,0.000148,2]
[339172626,1727274632343,-500.0,0.00015,5]
[339172629,1727274632355,-1000.0,0.00015,9]
[339172631,1727274632364,-1288.18811357,0.00015079,2]
[339172635,1727274632393,-411.81188643,0.00015079,2]
[339172636,1727274632402,-153.0,0.00015178,2]
[339172638,1727274632411,-306.0,0.00015178,2]
[339172639,1727274632421,-178.7823869,0.00015278,2]
[339172640,1727274632430,-500.0,0.00015686,2]
[339172641,1727274632439,-153.0,0.000157,2]
[339172643,1727274632449,-300.0,0.00015784,2]
[339172645,1727274632461,-6877.46825235,0.00015785,2]
[339172646,1727274632470,-6256.89765131,0.00015789,2]
[339172648,1727274632480,-153.0,0.000158,2]
[339172650,1727274632490,-153.0,0.000158,2]
[339172652,1727274632500,-1000.0,0.000158,2]
[339172654,1727274632509,-1128.00293454,0.000158,2]
[339172656,1727274632519,-499.99999901,0.000158,2]
[339172658,1727274632529,-1128.00293451,0.00015823,2]
[339172660,1727274632538,-1128.00293451,0.00015845,2]
[339172662,1727274632547,-500.0,0.0001586,2]
[339172664,1727274632556,-500.0,0.0001586,2]
[339172665,1727274632566,-500.0,0.0001586,2]
[339172667,1727274632575,-500.0,0.0001586,2]
[339172669,1727274632585,-327.7212305,0.0001586,2]
[339172671,1727274632594,-1128.00293451,0.00015868,2]
[339172673,1727274632604,-500.0,0.00015889,2]
[339172674,1727274632613,-500.0,0.00015889,2]
[339172676,1727274632623,-500.0,0.00015889,2]
[339172678,1727274632632,-500.0,0.00015889,2]
[339172680,1727274632642,-500.0,0.00015889,2]
[339172682,1727274632651,-500.0,0.00015889,2]
[339172683,1727274632661,-500.0,0.00015889,2]
[339172684,1727274632670,-500.0,0.00015889,2]
[339172685,1727274632680,-500.0,0.00015889,2]
[339172686,1727274632691,-500.0,0.00015889,2]
[339172687,1727274632700,-500.0,0.00015889,2]
[339172688,1727274632710,-500.0,0.00015889,2]
[339172689,1727274632719,-500.0,0.00015889,2]
[339172690,1727274632728,-500.0,0.00015889,2]
[339172691,1727274632738,-500.0,0.00015889,2]
[339172692,1727274632749,-500.0,0.00015889,2]
[339172693,1727274632760,-500.0,0.00015889,2]
[339172694,1727274632769,-500.0,0.00015889,2]
[339172695,1727274632779,-500.0,0.00015889,2]
[339172696,1727274632789,-500.0,0.00015889,2]
[339172697,1727274632799,-500.0,0.00015889,2]
[339172698,1727274632808,-500.0,0.00015889,2]
[339172699,1727274632817,-500.0,0.00015889,2]
[339172700,1727274632827,-500.0,0.00015889,2]
[339172701,1727274632836,-500.0,0.00015889,2]
[339172702,1727274632846,-500.0,0.00015889,2]
[339172703,1727274632856,-500.0,0.00015889,2]
[339172704,1727274632866,-500.0,0.00015889,2]
[339172705,1727274632876,-500.0,0.00015889,2]
[339172706,1727274632886,-500.0,0.00015889,2]
[339172707,1727274632895,-500.0,0.00015889,2]
[339172709,1727274632905,-500.0,0.00015889,2]
[339172711,1727274632916,-500.0,0.00015889,2]
[339172713,1727274632926,-500.0,0.00015889,2]
[339172715,1727274632937,-500.0,0.00015889,2]
[339172717,1727274632950,-500.0,0.00015889,2]
[339172718,1727274632961,-500.0,0.00015889,2]
[339172719,1727274632970,-500.0,0.00015889,2]
[339172721,1727274632980,-500.0,0.00015889,2]
[339172722,1727274632989,-500.0,0.00015889,2]
[339172724,1727274632999,-166.97755828,0.00015889,2]
[339172727,1727274633012,-333.02244172,0.00015889,2]
[339172729,1727274633026,-500.0,0.00015889,2]
[339172731,1727274633036,-500.0,0.00015889,2]
[339172733,1727274633046,-500.0,0.00015889,2]
[339172734,1727274633056,-491.22630343,0.00015889,2]
[339172827,1727274640096,-1128.00293451,0.0001589,2]
[339172829,1727274640107,-23922.0220517,0.0001589,2]
[339172831,1727274640117,-49305.7144512,0.0001589,2]
[339172833,1727274640129,-3000.0,0.0001589,2]
[339172835,1727274640139,-5003.65660779,0.000159,2]
[339172841,1727274640185,-16320.5275,0.000159,2]
[339172851,1727274640270,-22670.63508191,0.000159,2]
[339172853,1727274640280,-153.0,0.000159,2]
[339172855,1727274640291,-150.0,0.000159,2]
[339172857,1727274640303,-153.0,0.000159,2]
[339172859,1727274640314,-153.0,0.000159,2]
[339172861,1727274640324,-2089.86833708,0.000159,2]
[339172863,1727274640334,-184.0,0.0001592,2]
[339172865,1727274640344,-259.48622268,0.00015958,2]
[339172867,1727274640354,-186.43918686,0.00015958,2]
[339172869,1727274640364,-500.0,0.00015958,2]
[339172871,1727274640374,-500.0,0.00015958,2]
[339172873,1727274640383,-500.0,0.00015958,2]
[339172875,1727274640393,-500.0,0.00015958,2]
[339172877,1727274640402,-350.28732434,0.00015958,2]
[339172879,1727274640412,-500.0,0.00015958,2]
[339172881,1727274640422,-500.0,0.00015958,2]
[339172883,1727274640432,-500.0,0.00015958,2]
[339172885,1727274640441,-500.0,0.00015958,2]
[339172888,1727274640451,-500.0,0.00015958,2]
[339172890,1727274640460,-500.0,0.00015958,2]
[339172892,1727274640472,-427.03101367,0.00015958,2]
[339172894,1727274640482,-23922.0220517,0.0001596,2]
[339172896,1727274640492,-49305.7144512,0.0001596,2]
[339172898,1727274640501,-730.93465484,0.00015961,2]
[339172900,1727274640512,-23922.0220517,0.0001597,2]
[339172902,1727274640521,-49305.7144512,0.0001597,2]
[339172904,1727274640531,-151.0,0.0001597,2]
[339172906,1727274640542,-151.0,0.0001597,2]
[339172908,1727274640551,-326.920649,0.0001597,2]
[339172910,1727274640561,-326.920649,0.0001597,2]
[339172913,1727274640571,-2539.362611,0.0001597,2]
[339172915,1727274640581,-2539.362611,0.0001597,2]
[339172917,1727274640591,-151.0,0.0001597,2]
[339172919,1727274640600,-151.0,0.0001597,2]
[339172921,1727274640609,-151.0,0.0001597,2]
[339172923,1727274640619,-151.0,0.0001597,2]
[339172925,1727274640629,-151.0,0.0001597,2]
[339172927,1727274640639,-23922.0220517,0.0001597,2]
[339172929,1727274640649,-49305.7144512,0.0001597,2]
[339172931,1727274640658,-151.0,0.0001597,2]
[339172933,1727274640668,-151.0,0.0001597,2]
[339172935,1727274640678,-151.0,0.0001597,2]
[339172938,1727274640688,-151.0,0.0001597,2]
[339172940,1727274640698,-151.0,0.0001597,2]
[339172942,1727274640708,-976.347712,0.0001597,2]
[339172944,1727274640718,-976.347712,0.0001597,2]
[339172946,1727274640728,-151.0,0.0001597,2]
[339172948,1727274640738,-151.0,0.0001597,2]
[339172950,1727274640748,-151.0,0.0001597,2]
[339172951,1727274640758,-151.0,0.0001597,2]
[339172952,1727274640767,-151.0,0.0001597,2]
[339172953,1727274640781,-2481.765256,0.0001597,2]
[339172954,1727274640791,-2481.765256,0.0001597,2]
[339172955,1727274640801,-2481.765256,0.0001597,2]
[339172956,1727274640810,-23922.0220517,0.0001597,2]
[339172957,1727274640820,-49305.7144512,0.0001597,2]
[339172958,1727274640830,-500.0,0.00015973,2]
[339172959,1727274640841,-500.1104338,0.00015973,2]
[339172960,1727274640851,-160.0,0.00015979,2]
[339172961,1727274640861,-160.0,0.00015979,2]
[339172962,1727274640871,-161.95168062,0.00015979,2]
[339172963,1727274640881,-151.0,0.00015979,2]
[339172964,1727274640891,-151.0,0.00015979,2]
[339172965,1727274640901,-222.525844,0.00015979,2]
[339172966,1727274640910,-222.525844,0.00015979,2]
[339172967,1727274640919,-222.525844,0.00015979,2]
[339172968,1727274640929,-222.525844,0.00015979,2]
[339172969,1727274640939,-222.525844,0.00015979,2]
[339172970,1727274640950,-222.525844,0.00015979,2]
[339172971,1727274640960,-151.0,0.0001598,2]
[339172972,1727274640973,-151.0,0.0001598,2]
[339172974,1727274640983,-151.0,0.0001598,2]
[339172976,1727274640993,-274.385458,0.0001598,2]
[339172978,1727274641003,-222.525844,0.0001598,2]
[339172980,1727274641013,-222.525844,0.0001598,2]
[339172982,1727274641026,-222.525844,0.0001598,2]
[339172984,1727274641036,-222.525844,0.0001598,2]
[339172986,1727274641046,-222.525844,0.0001598,2]
[339172987,1727274641055,-222.525844,0.0001598,2]
[339172988,1727274641066,-321.899335,0.0001598,2]
[339172989,1727274641076,-321.899335,0.0001598,2]
[339172990,1727274641085,-321.899335,0.0001598,2]
[339172991,1727274641097,-321.899335,0.0001598,2]
[339172992,1727274641108,-246.00392,0.0001598,2]
[339172993,1727274641119,-246.00392,0.0001598,2]
[339172994,1727274641129,-246.00392,0.0001598,2]
[339172995,1727274641138,-246.00392,0.0001598,2]
[339172996,1727274641148,-4196.501086,0.0001598,2]
[339172997,1727274641157,-4196.501086,0.0001598,2]
[339172998,1727274641167,-4196.501086,0.0001598,2]
[339172999,1727274641177,-4196.501086,0.0001598,2]
[339173000,1727274641187,-320.71268,0.0001598,2]
[339173001,1727274641196,-320.71268,0.0001598,2]
[339173002,1727274641206,-320.71268,0.0001598,2]
[339173003,1727274641216,-320.71268,0.0001598,2]
[339173004,1727274641229,-456.088569,0.0001598,2]
[339173006,1727274641239,-456.088569,0.0001598,2]
[339173008,1727274641248,-151.0,0.0001598,2]
[339173010,1727274641258,-151.049112,0.0001598,2]
[339173012,1727274641267,-2054.426845,0.0001598,2]
[339173014,1727274641278,-2054.426845,0.0001598,2]
[339173016,1727274641288,-2054.426845,0.0001598,2]
[339173018,1727274641297,-2054.426845,0.0001598,2]
[339173020,1727274641307,-2000.0,0.0001598,2]
[339173023,1727274641317,-2000.0,0.0001598,2]
[339173025,1727274641327,-2000.0,0.0001598,2]
[339173027,1727274641337,-2000.0,0.0001598,2]
[339173029,1727274641348,-2000.0,0.0001598,2]
[339173031,1727274641358,-2000.0,0.0001598,2]
[339173033,1727274641367,-2000.0,0.0001598,2]
[339173036,1727274641378,-2000.0,0.0001598,2]
[339173038,1727274641387,-2000.0,0.0001598,2]
[339173040,1727274641397,-2000.0,0.0001598,2]
[339173042,1727274641407,-2000.0,0.0001598,2]
[339173044,1727274641416,-2000.0,0.0001598,2]
[339173046,1727274641426,-2000.0,0.0001598,2]
[339173048,1727274641435,-2000.0,0.0001598,2]
[339173050,1727274641445,-2000.0,0.0001598,2]
[339173052,1727274641456,-2000.0,0.0001598,2]
[339173054,1727274641467,-2000.0,0.0001598,2]
[339173056,1727274641483,-2000.0,0.0001598,2]
[339173058,1727274641493,-2000.0,0.0001598,2]
[339173060,1727274641502,-1719.583193,0.0001598,2]
[339173063,1727274641511,-181.263138,0.0001598,2]
[339173065,1727274641522,-181.263138,0.0001598,2]
[339173067,1727274641532,-181.263138,0.0001598,2]
[339173069,1727274641542,-181.263138,0.0001598,2]
[339173071,1727274641552,-1145.624119,0.0001598,2]
[339173073,1727274641563,-1145.624119,0.0001598,2]
[339173075,1727274641573,-1145.624119,0.0001598,2]
[339173077,1727274641583,-1145.624119,0.0001598,2]
[339173079,1727274641593,-151.0,0.0001598,2]
[339173081,1727274641603,-151.0,0.0001598,2]
[339173083,1727274641613,-326.920649,0.0001598,2]
[339173085,1727274641622,-326.920649,0.0001598,2]
[339173087,1727274641633,-299.538799,0.0001598,2]
[339173090,1727274641642,-299.538799,0.0001598,2]
[339173092,1727274641653,-326.920649,0.0001598,2]
[339173094,1727274641663,-326.920649,0.0001598,2]
[339173096,1727274641673,-299.538799,0.0001598,2]
[339173098,1727274641683,-299.538799,0.0001598,2]
[339173100,1727274641694,-593.159796,0.0001598,2]
[339173102,1727274641704,-593.159796,0.0001598,2]
[339173104,1727274641714,-593.159796,0.0001598,2]
[339173106,1727274641728,-593.159796,0.0001598,2]
[339173109,1727274641738,-2539.362611,0.0001598,2]
[339173111,1727274641748,-2539.362611,0.0001598,2]
[339173113,1727274641759,-2539.362611,0.0001598,2]
[339173115,1727274641769,-2539.362611,0.0001598,2]
[339173117,1727274641779,-151.0,0.0001598,2]
[339173119,1727274641789,-151.0,0.0001598,2]
[339173121,1727274641800,-151.0,0.0001598,2]
[339173123,1727274641809,-208.003114,0.0001598,2]
[339173125,1727274641820,-151.0,0.0001598,2]
[339173127,1727274641831,-151.0,0.0001598,2]
[339173129,1727274641841,-151.0,0.0001598,2]
[339173132,1727274641852,-151.0,0.0001598,2]
[339173135,1727274641875,-151.0,0.0001598,2]
[339173138,1727274641888,-151.0,0.0001598,2]
[339173140,1727274641898,-151.0,0.0001598,2]
[339173142,1727274641908,-151.0,0.0001598,2]
[339173144,1727274641919,-151.0,0.0001598,2]
[339173146,1727274641929,-151.0,0.0001598,2]
[339173148,1727274641940,-151.0,0.0001598,2]
[339173150,1727274641950,-166.60358,0.0001598,2]
[339173152,1727274641961,-151.0,0.0001598,2]
[339173154,1727274641973,-151.0,0.0001598,2]
[339173156,1727274641989,-976.347712,0.0001598,2]
[339173158,1727274641998,-976.347712,0.0001598,2]
[339173160,1727274642008,-976.347712,0.0001598,2]
[339173162,1727274642022,-976.347712,0.0001598,2]
[339173164,1727274642032,-151.0,0.0001598,2]
[339173166,1727274642042,-151.0,0.0001598,2]
[339173168,1727274642052,-151.0,0.0001598,2]
[339173170,1727274642063,-151.0,0.0001598,2]
[339173172,1727274642073,-151.0,0.0001598,2]
[339173174,1727274642084,-2481.765256,0.0001598,2]
[339173177,1727274642094,-2481.765256,0.0001598,2]
[339173179,1727274642104,-2481.765256,0.0001598,2]
[339173181,1727274642115,-95688.0882068,0.0001598,2]
[339173183,1727274642126,-20359.99529066,0.0001598,2]
[339173186,1727274642144,-716.68371583,0.0001598,2]
[339173188,1727274642156,-1256.38284064,0.0001598,2]
[339173337,1727274643500,-442.88422161,0.0001597,2]
[339173340,1727274643513,-298.46684654,0.0001597,2]
[339173342,1727274643525,-1740.41418785,0.0001597,2]
[339173344,1727274643535,-703.43533537,0.0001597,2]
[339173589,1727274646052,-1778.32992063,0.0001597,2]
[339173591,1727274646062,-526.97007936,0.0001597,2]
[339173599,1727274646134,-1373.08025271,0.0001597,2]
[339173601,1727274646147,-581.71492393,0.0001597,2]
[339173603,1727274646157,-2481.765256,0.0001598,2]
[339173605,1727274646167,-2481.765256,0.0001598,2]
[339173607,1727274646176,-2481.765256,0.0001598,2]
[339173609,1727274646187,-76278.36705517,0.0001598,2]
[339173612,1727274646197,-37238.28071163,0.0001599,2]
[339173614,1727274646207,-103171.05716406,0.0001599,2]
[339174450,1727274654845,1000.0,0.00015,10]
[339175983,1727274690484,1400.0,0.00013709,2]
[339175985,1727274701312,16292.9804044,0.00012,2]
[339175989,1727274810254,500.0,0.00013014,2]
[339176005,1727275410680,500.0,0.00013014,2]
[339176006,1727275496374,868.64,0.00010959,2]
[339176009,1727275545462,1300.0,0.00013667,2]
[339176010,1727275551164,-401.006169,0.00014167,2]
[339176011,1727275551187,-3000.0,0.00014468,2]
[339176012,1727275551210,-300.0,0.00014519,2]
[339176013,1727275551232,-300.0,0.00014519,2]
[339176014,1727275551253,-518.70566007,0.0001452,2]
[339176020,1727275627146,-6118.40987443,0.0001452,2]
[339176021,1727275627168,-172.6162,0.00014582,2]
[339176022,1727275627190,-1000.0,0.00015,9]
[339176023,1727275627212,-1300.0,0.00015037,2]
[339176024,1727275627233,-300.0,0.0001524,2]
[339176025,1727275627253,-300.0,0.0001524,2]
[339176026,1727275627273,-1177.74000991,0.00015242,2]
[339176027,1727275627293,-172.6162,0.00015267,2]
[339176028,1727275627314,-306.0,0.00015479,2]
[339176029,1727275627334,-500.0,0.00015609,2]
[339176030,1727275627355,-7146.18197968,0.00015616,2]
[339176031,1727275627375,-150.33327791,0.00015675,2]
[339176032,1727275627398,-500.0,0.00015799,2]
[339176033,1727275627421,-500.0,0.00015799,2]
[339176034,1727275627444,-500.0,0.00015799,2]
[339176035,1727275627468,-500.0,0.00015799,2]
[339176036,1727275627491,-500.0,0.00015799,2]
[339176037,1727275627515,-500.0,0.00015799,2]
[339176038,1727275627537,-500.0,0.00015799,2]
[339176039,1727275627560,-500.0,0.00015799,2]
[339176040,1727275627584,-500.0,0.00015799,2]
[339176041,1727275627608,-500.0,0.00015799,2]
[339176042,1727275627632,-500.0,0.00015799,2]
[339176043,1727275627655,-500.0,0.00015799,2]
[339176044,1727275627678,-500.0,0.00015799,2]
[339176045,1727275627701,-500.0,0.00015799,2]
[339176046,1727275627726,-500.0,0.00015799,2]
[339176047,1727275627749,-500.0,0.00015799,2]
[339176048,1727275627774,-500.0,0.00015799,2]
[339176049,1727275627798,-500.0,0.00015799,2]
[339176050,1727275627821,-500.0,0.00015799,2]
[339176051,1727275627851,-500.0,0.00015799,2]
[339176052,1727275627873,-500.0,0.00015799,2]
[339176053,1727275627896,-500.0,0.00015799,2]
[339176054,1727275627919,-500.0,0.00015799,2]
[339176055,1727275627941,-176.07432133,0.00015799,2]
[339176056,1727275627964,-500.0,0.00015799,2]
[339176057,1727275627989,-500.0,0.00015799,2]
[339176058,1727275628012,-500.0,0.00015799,2]
[339176059,1727275628034,-500.0,0.00015799,2]
[339176060,1727275628055,-27926.79324265,0.000158,2]
[339176061,1727275628076,-255.81164796,0.0001583,2]
[339176062,1727275628096,-1000.0,0.00015833,2]
[339176063,1727275628117,-255.81164793,0.0001584,2]
[339176064,1727275628137,-188.0,0.0001585,2]
[339176065,1727275628158,-255.81164793,0.0001585,2]
[339176066,1727275628178,-255.81164793,0.0001586,2]
[339176067,1727275628199,-255.81164793,0.0001587,2]
[339176068,1727275628221,-3000.0,0.0001589,2]
[339176069,1727275628247,-153.0,0.0001589,2]
[339176070,1727275628275,-209.0875088,0.0001589,2]
[339176071,1727275628304,-153.0,0.0001589,2]
[339176072,1727275628331,-153.0,0.0001589,2]
[339176073,1727275628355,-209.0875088,0.0001589,2]
[339176074,1727275628382,-150.112233,0.000159,2]
[339176075,1727275628409,-150.112233,0.000159,2]
[339176076,1727275628437,-150.112233,0.000159,2]
[339176077,1727275628466,-150.112233,0.000159,2]
[339176078,1727275628495,-150.112237,0.000159,2]
[339176079,1727275628523,-150.790631,0.000159,2]
[339176080,1727275628555,-28768.5593944,0.00015923,2]
[339176081,1727275628588,-12314.41309341,0.00015923,2]
[339176083,1727275642304,-6997.30318843,0.00015649,2]
[339176084,1727275642329,-209.0875088,0.0001589,2]
[339176085,1727275642352,-153.0,0.0001589,2]
[339176086,1727275642376,-37193.89443389,0.00015923,2]
[339176087,1727275642400,-500.0,0.00015932,2]
[339176088,1727275642422,-181.64035587,0.00015932,2]
[339176089,1727275642447,-480.5074308,0.00015932,2]
[339176090,1727275642478,-595.20112704,0.00015932,2]
[339176091,1727275642505,-500.0,0.00015932,2]
[339176092,1727275642530,-500.0,0.00015932,2]
[339176093,1727275642554,-500.0,0.00015932,2]
[339176094,1727275642579,-500.0,0.00015932,2]
[339176095,1727275642604,-500.0,0.00015932,2]
[339176096,1727275642974,-500.0,0.00015932,2]
[339176097,1727275643023,-598.92170957,0.00015932,2]
[339176098,1727275643045,-300.0,0.00015932,2]
[339176099,1727275643066,-487.2897699,0.00015933,2]
[339176100,1727275643087,-28768.5593944,0.00015933,2]
[339176101,1727275643108,-49508.3075273,0.00015933,2]
[339176102,1727275643128,-153.0,0.00015942,2]
[339176103,1727275643149,-153.0,0.00015942,2]
[339176104,1727275643169,-153.0,0.00015942,2]
[339176105,1727275643190,-153.0,0.00015942,2]
[339176106,1727275643210,-153.0,0.00015942,2]
[339176107,1727275643235,-153.0,0.00015942,2]
[339176108,1727275643255,-153.0,0.00015942,2]
[339176109,1727275643280,-153.0,0.00015942,2]
[339176110,1727275643300,-153.0,0.00015942,2]
[339176111,1727275643320,-153.0,0.00015942,2]
[339176112,1727275643342,-153.0,0.00015942,2]
[339176113,1727275643363,-153.0,0.00015942,2]
[339176114,1727275643385,-425.0,0.00015942,2]
[339176115,1727275643407,-425.0,0.00015942,2]
[339176116,1727275643428,-425.0,0.00015942,2]
[339176117,1727275643448,-425.0,0.00015942,2]
[339176118,1727275643470,-425.0,0.00015942,2]
[339176119,1727275643490,-425.0,0.00015942,2]
[339176120,1727275643514,-425.0,0.00015942,2]
[339176121,1727275643534,-425.0,0.00015942,2]
[339176122,1727275643557,-425.0,0.00015942,2]
[339176123,1727275643577,-425.0,0.00015942,2]
[339176124,1727275643598,-425.0,0.00015942,2]
[339176125,1727275643618,-425.0,0.00015942,2]
[339176126,1727275643639,-425.0,0.00015942,2]
[339176127,1727275643660,-425.0,0.00015942,2]
[339176128,1727275643681,-153.0,0.00015942,2]
[339176129,1727275643702,-153.0,0.00015942,2]
[339176130,1727275643725,-153.0,0.00015942,2]
[339176131,1727275643745,-153.0,0.00015942,2]
[339176132,1727275643767,-153.0,0.00015942,2]
[339176133,1727275643788,-153.0,0.00015942,2]
[339176134,1727275643810,-153.0,0.00015942,2]
[339176135,1727275643831,-153.0,0.00015942,2]
[339176136,1727275643852,-153.0,0.00015942,2]
[339176137,1727275643872,-425.0,0.00015942,2]
[339176138,1727275643892,-425.0,0.00015942,2]
[339176139,1727275643912,-425.0,0.00015942,2]
[339176140,1727275643932,-425.0,0.00015942,2]
[339176141,1727275643952,-425.0,0.00015942,2]
[339176142,1727275643973,-425.0,0.00015942,2]
[339176143,1727275643993,-425.0,0.00015942,2]
[339176144,1727275644014,-425.0,0.00015942,2]
[339176145,1727275644034,-425.0,0.00015942,2]
[339176146,1727275644054,-425.0,0.00015942,2]
[339176147,1727275644075,-425.0,0.00015942,2]
[339176148,1727275644096,-425.0,0.00015942,2]
[339176149,1727275644115,-425.0,0.00015942,2]
[339176150,1727275644136,-153.0,0.00015943,2]
[339176151,1727275644156,-153.0,0.00015943,2]
[339176152,1727275644176,-153.0,0.00015943,2]
[339176153,1727275644196,-153.0,0.00015943,2]
[339176154,1727275644215,-153.0,0.00015943,2]
[339176155,1727275644236,-153.0,0.00015943,2]
[339176156,1727275644255,-153.0,0.00015943,2]
[339176157,1727275644276,-153.0,0.00015943,2]
[339176158,1727275644298,-153.0,0.00015943,2]
[339176159,1727275644319,-153.0,0.00015943,2]
[339176160,1727275644340,-153.0,0.00015943,2]
[339176161,1727275644360,-425.0,0.00015943,2]
[339176162,1727275644380,-425.0,0.00015943,2]
[339176163,1727275644401,-425.0,0.00015943,2]
[339176164,1727275644426,-425.0,0.00015943,2]
[339176165,1727275644446,-425.0,0.00015943,2]
[339176166,1727275644467,-425.0,0.00015943,2]
[339176167,1727275644489,-425.0,0.00015943,2]